bitfinex-derivatives/quotes_SOLF0:USTF0_20251208
["timestamp","ask_amount","ask_price","bid_price","bid_amount"]
[1765184419621,0.04982632,136.79,136.78,3.05]
[1765184420031,62.92982632,136.79,136.78,3.05]
[1765184420215,62.92982632,136.79,136.78,5.42401462]
[1765184421429,66.22982632,136.79,136.77,9.01026937]
[1765184421728,62.92982632,136.79,136.77,12.06026937]
[1765184422532,62.92982632,136.79,136.77,9.68625475]
[1765184422713,62.92982632,136.79,136.78,2.37401462]
[1765184424625,62.92982632,136.79,136.78,5.42401462]
[1765184425324,0.04982632,136.79,136.78,5.42401462]
[1765184425529,62.88982632,136.79,136.78,5.42401462]
[1765184425731,62.90982632,136.79,136.78,5.42401462]
[1765184426134,62.90982632,136.79,136.78,3.05]
[1765184426337,62.90982632,136.79,136.78,5.42401462]
[1765184429126,62.90982632,136.79,136.78,3.05]
[1765184429331,62.90982632,136.79,136.78,5.42401462]
[1765184431640,0.04982632,136.79,136.78,5.42401462]
[1765184431838,62.86982632,136.79,136.78,3.05]
[1765184432033,62.86982632,136.79,136.78,5.42401462]
[1765184432748,0.04982632,136.79,136.78,5.42401462]
[1765184433040,60.88982632,136.79,136.78,5.42401462]
[1765184433546,0.04982632,136.79,136.78,5.42401462]
[1765184433839,3.3,136.84,136.8,3.05]
[1765184434044,62.8,136.83,136.82,2.37401462]
[1765184434236,66.1,136.83,136.82,2.37401462]
[1765184434640,66.1,136.83,136.81,0.04956121]
[1765184434835,66.1,136.83,136.81,3.09956121]
[1765184435143,66.1,136.83,136.82,2.37401462]
[1765184435535,66.1,136.83,136.82,8.95101462]
[1765184438342,3.35159862,136.84,136.82,12.00101462]
[1765184438546,62.78,136.83,136.82,8.95101462]
[1765184438941,3.35159862,136.84,136.82,6.577]
[1765184439139,66.08,136.83,136.82,6.577]
[1765184439341,0.05159862,136.84,136.83,2.37401462]
[1765184439546,62.83159862,136.84,136.83,5.42401462]
[1765184440242,66.13159862,136.84,136.83,2.37401462]
[1765184442447,66.13159862,136.84,136.82,6.577]
[1765184442448,66.13159862,136.84,136.82,8.95101462]
[1765184444051,66.13159862,136.84,136.82,12.00101462]
[1765184444446,3.35159862,136.84,136.82,12.00101462]
[1765184444655,62.76,136.83,136.82,9.627]
[1765184446956,62.74,136.83,136.82,9.627]
[1765184449162,3.35159862,136.84,136.82,6.577]
[1765184449358,62.74,136.83,136.82,6.577]
[1765184450561,3.35159862,136.84,136.82,6.577]
[1765184450762,62.74,136.83,136.82,6.577]
[1765184451371,39.4354,136.83,136.82,6.577]
[1765184451564,17.3596,136.83,136.82,6.577]
[1765184451758,51.6055,136.83,136.82,6.577]
[1765184451964,54.6955,136.83,136.82,6.577]
[1765184453962,3.09,136.83,136.82,6.577]
[1765184454159,65.79,136.83,136.82,6.577]
[1765184454956,3.09,136.82,136.81,0.04956121]
[1765184455667,3.09,136.82,136.8,4.18124532]
[1765184455871,3.09,136.82,136.79,6.5787]
[1765184456872,3.14637273,136.82,136.79,6.63409169]
[1765184457269,3.14637273,136.82,136.8,6.578]
[1765184457668,62.7,136.81,136.8,6.578]
[1765184457867,65.79,136.81,136.8,6.578]
[1765184458464,65.81,136.81,136.8,6.578]
[1765184460667,3.09,136.81,136.8,6.578]
[1765184460975,0.05637273,136.82,136.8,9.828]
[1765184461170,62.7,136.81,136.8,6.578]
[1765184463072,0.05637273,136.82,136.8,9.688]
[1765184463369,10.27507562,136.87,136.85,9.6858]
[1765184463370,3.1,136.87,136.85,9.6858]
[1765184463571,62.74,136.86,136.85,20.1285404]
[1765184464171,3.14933409,136.87,136.85,20.1285404]
[1765184464369,62.74,136.86,136.85,20.1285404]
[1765184464574,51.3695,136.86,136.85,20.1285404]
[1765184464770,0.04933409,136.87,136.86,3.11]
[1765184464976,3.1,136.89,136.88,3.69997562]
[1765184465174,65.84,136.89,136.88,3.69997562]
[1765184465478,62.74,136.89,136.88,3.69997562]
[1765184466780,3.14888437,136.9,136.89,6.574]
[1765184467080,65.88888437,136.9,136.89,6.574]
[1765184467469,62.78888437,136.9,136.88,3.69997562]
[1765184467673,65.84,136.89,136.88,3.69997562]
[1765184468489,65.84,136.89,136.88,10.27437562]
[1765184468780,65.82,136.89,136.88,10.27437562]
[1765184469081,3.1,136.89,136.88,10.27437562]
[1765184469284,65.82,136.89,136.88,10.27437562]
[1765184469780,3.1,136.89,136.88,10.27437562]
[1765184469980,65.82,136.89,136.88,10.27437562]
[1765184470766,62.72,136.89,136.88,10.27437562]
[1765184471880,65.82,136.89,136.88,6.5744]
[1765184481491,65.82,136.89,136.88,10.27437562]
[1765184481784,62.68,136.89,136.88,13.38437562]
[1765184482786,3.21888437,136.9,136.88,13.38437562]
[1765184482971,3.21888437,136.9,136.88,10.27437562]
[1765184482972,65.85,136.89,136.88,10.27437562]
[1765184483178,65.85,136.89,136.88,6.5744]
[1765184483382,3.17,136.88,136.87,6.78370913]
[1765184486082,65.83,136.88,136.87,6.78370913]
[1765184486284,0.04888437,136.9,136.89,3.11]
[1765184486487,65.87888437,136.9,136.88,6.5745]
[1765184486688,3.17,136.89,136.87,6.78370913]
[1765184486883,3.17,136.89,136.87,6.62387811]
[1765184488387,62.66,136.88,136.87,6.62387811]
[1765184488586,3.17,136.88,136.87,6.62387811]
[1765184488879,65.83,136.88,136.87,6.62387811]
[1765184489494,3.21888437,136.9,136.88,6.5741]
[1765184489789,65.83,136.89,136.88,6.5741]
[1765184491686,0.04888437,136.9,136.89,3.11]
[1765184491881,48.62095516,136.9,136.89,6.80997562]
[1765184492078,36.92845516,136.9,136.89,6.80997562]
[1765184492782,3.17,136.94,136.9,3.11]
[1765184492982,65.87839989,136.93,136.91,0.05174715]
[1765184493183,3.17,136.92,136.91,0.05174715]
[1765184493584,3.17,136.92,136.91,6.62484715]
[1765184494986,65.83,136.92,136.91,6.62484715]
[1765184495185,3.17,136.92,136.91,6.62484715]
[1765184495391,65.83,136.92,136.91,6.62484715]
[1765184496990,0.04839989,136.93,136.92,3.11]
[1765184497190,3.17,136.98,136.95,3.11]
[1765184497382,3.17,136.99,136.94,105.333]
[1765184497583,65.83,136.98,136.96,6.5703]
[1765184497785,193.45847562,137.06,136.95,102.2185]
[1765184497786,102.0786,137.14,137.03,102.1584]
[1765184497988,62.84,137.12,137.08,3.11]
[1765184498284,102.0579,137.17,137.09,0.04755281]
[1765184498285,62.91454106,137.11,137.09,0.04755281]
[1765184498685,62.86,137.1,137.09,0.04755281]
[1765184499085,0.05454106,137.11,137.09,3.74752843]
[1765184499284,62.86,137.1,137.09,6.85752843]
[1765184499491,62.86,137.1,137.09,3.74752843]
[1765184499689,66.03,137.1,137.09,0.04755281]
[1765184500085,3.17,137.09,137.06,3.69997562]
[1765184500285,3.17,137.09,137.04,6.80997562]
[1765184500985,3.225395,137.08,137.05,0.0522251]
[1765184502287,62.88,137.07,137.06,3.11]
[1765184502495,62.88,137.07,137.05,3.75220072]
[1765184502695,62.88,137.07,137.05,0.0522251]
[1765184502696,66.05,137.07,137.05,0.0522251]
[1765184503493,3.17,137.07,137.05,0.0522251]
[1765184503887,62.86,137.06,137.05,0.0522251]
[1765184504699,0.055395,137.08,137.05,13.42840072]
[1765184504890,62.86,137.07,137.06,3.11]
[1765184505287,62.86,137.07,137.05,10.31840072]
[1765184505491,62.86,137.07,137.05,13.42840072]
[1765184506288,0.055395,137.08,137.05,13.42840072]
[1765184506593,62.84,137.07,137.05,13.42840072]
[1765184506797,62.84,137.07,137.06,2.35968755]
[1765184507304,0.055395,137.08,137.06,2.35968755]
[1765184507801,62.84,137.07,137.06,2.35968755]
[1765184508796,3.185395,137.08,137.06,2.35968755]
[1765184508997,62.82,137.07,137.06,2.35968755]
[1765184509305,65.95,137.07,137.06,2.35968755]
[1765184511205,65.95,137.07,137.04,2.35968755]
[1765184511206,3.13,137.06,137.04,2.35968755]
[1765184511414,3.13,137.06,136.99,105.3452]
[1765184511604,3.13,137.03,136.97,134.6670165]
[1765184511812,3.13,137.03,136.98,2.35968755]
[1765184512106,3.13,137.01,137.0,2.35968755]
[1765184512411,65.93,137.01,137.0,2.35968755]
[1765184513308,62.8,137.01,137.0,2.35968755]
[1765184513809,62.82,137.01,137.0,8.92818755]
[1765184514007,3.18569057,137.02,137.0,8.92818755]
[1765184514310,62.82,137.01,137.0,8.92818755]
[1765184518206,0.05569057,137.02,137.0,12.08818755]
[1765184518401,0.05569057,137.02,137.01,3.16]
[1765184518606,3.29,137.08,137.02,105.4443]
[1765184518798,62.8,137.07,137.02,105.4443]
[1765184519003,3.29,137.07,137.03,3.28]
[1765184519205,62.8,137.06,137.03,3.28]
[1765184519517,62.85545814,137.06,137.05,6.5662]
[1765184519708,66.14545814,137.06,137.05,6.5662]
[1765184520614,62.85545814,137.06,137.05,6.5662]
[1765184521115,0.05545814,137.06,137.05,6.5662]
[1765184521310,62.85545814,137.06,137.05,6.5662]
[1765184522918,3.34545814,137.06,137.05,6.5662]
[1765184523114,62.85545814,137.06,137.05,6.5662]
[1765184523511,0.05545814,137.06,137.05,6.5662]
[1765184523714,62.83545814,137.06,137.05,6.5662]
[1765184524314,0.05545814,137.06,137.05,9.8462]
[1765184524521,29.0,137.12,137.09,3.28]
[1765184524522,3.29,137.12,137.09,3.28]
[1765184524709,3.29,137.19,137.11,107.71176292]
[1765184524917,102.0146,137.23,137.09,102.1141]
[1765184524918,3.29,137.25,137.18,3.28]
[1765184525215,3.29,137.25,137.14,102.0751]
[1765184525216,3.29,137.31,137.24,3.28]
[1765184525414,87.54,137.38,137.27,6.5558]
[1765184525415,3.29,137.34,137.27,6.5558]
[1765184525719,101.8776,137.41,137.27,6.5558]
[1765184525720,66.19,137.33,137.3,101.954]
[1765184525912,3.29,137.41,137.32,8.89976292]
[1765184526213,101.8491,137.45,137.32,8.89976292]
[1765184526214,3.29,137.39,137.33,101.931]
[1765184526430,62.92,137.38,137.33,8.89976292]
[1765184526607,90.81,137.46,137.36,101.9127]
[1765184526812,105.1459,137.44,137.35,0.0530658]
[1765184527115,3.29,137.43,137.36,5.61976292]
[1765184527314,3.29,137.43,137.35,5.61976292]
[1765184527515,3.33710297,137.41,137.38,0.04883032]
[1765184527721,3.33710297,137.41,137.32,5.61976292]
[1765184528015,3.29,137.41,137.33,5.61976292]
[1765184528216,3.29,137.41,137.33,3.28]
[1765184528412,63.0,137.42,137.34,3.28]
[1765184528612,0.05438793,137.39,137.37,3.3290576]
[1765184528912,0.05438793,137.39,137.38,5.61976292]
[1765184529113,0.05438793,137.39,137.38,4.74]
[1765184529314,0.05438793,137.39,137.37,0.0490576]
[1765184529507,3.34438793,137.39,137.37,0.0490576]
[1765184529905,3.34438793,137.39,137.31,3.28]
[1765184530113,3.34438793,137.39,137.3,144.28509617]
[1765184530314,3.29,137.39,137.3,144.28509617]
[1765184530613,3.29,137.37,137.33,5.61976292]
[1765184530808,0.05595083,137.36,137.34,0.05459759]
[1765184531311,63.16,137.35,137.34,3.33459759]
[1765184531514,0.05595083,137.36,137.34,0.05459759]
[1765184531824,63.18,137.35,137.34,0.05459759]
[1765184532029,0.05595083,137.36,137.35,3.28]
[1765184532324,63.23595083,137.36,137.35,3.28]
[1765184532616,3.29,137.47,137.37,3.28]
[1765184532811,3.29,137.47,137.4,5.61976292]
[1765184533008,63.24,137.46,137.4,5.61976292]
[1765184533212,3.29,137.45,137.38,3.28]
[1765184533522,0.04825043,137.43,137.4,0.04608234]
[1765184533717,0.05468906,137.43,137.4,0.04771597]
[1765184533923,3.29,137.42,137.4,0.04771597]
[1765184534112,3.29,137.42,137.35,8.89976292]
[1765184534715,63.26,137.41,137.35,8.89976292]
[1765184534915,3.29,137.42,137.35,8.89976292]
[1765184535112,3.29,137.46,137.41,8.89976292]
[1765184535422,63.28,137.44,137.42,3.32744965]
[1765184535726,63.28,137.44,137.42,0.04744965]
[1765184535927,66.57,137.44,137.42,0.04744965]
[1765184536123,3.29,137.43,137.42,0.04744965]
[1765184536421,101.8674,137.43,137.35,8.89976292]
[1765184536620,3.29,137.42,137.35,8.89976292]
[1765184536810,63.3,137.41,137.35,8.89976292]
[1765184537416,0.05588963,137.39,137.37,0.04698933]
[1765184537621,63.28,137.38,137.37,3.32698933]
[1765184538027,63.28,137.38,137.37,0.04698933]
[1765184538213,0.05588963,137.39,137.37,3.39698933]
[1765184538417,63.35588963,137.39,137.37,3.39698933]
[1765184538613,63.3,137.38,137.37,0.04698933]
[1765184539422,66.49,137.38,137.37,0.04698933]
[1765184539618,63.3,137.38,137.37,0.04698933]
[1765184540319,0.05588963,137.39,137.37,0.04698933]
[1765184540522,0.05588963,137.39,137.37,3.39698933]
[1765184540723,0.05588963,137.39,137.37,0.04698933]
[1765184541025,63.34,137.38,137.37,0.04698933]
[1765184541223,66.53,137.38,137.37,0.04698933]
[1765184541819,66.53,137.38,137.32,12.17276292]
[1765184542021,3.19,137.37,137.32,5.61976292]
[1765184542327,3.19,137.37,137.29,5.61976292]
[1765184542926,3.19,137.33,137.32,0.05239247]
[1765184543928,3.19,137.33,137.28,6.5553]
[1765184544123,3.19,137.31,137.28,6.5553]
[1765184544317,63.32,137.3,137.28,6.5553]
[1765184544518,3.19,137.29,137.24,101.9995]
[1765184544719,3.19,137.29,137.25,101.9937]
[1765184544923,0.05186557,137.28,137.26,0.04853934]
[1765184546731,3.24186557,137.28,137.19,105.3883]
[1765184547031,3.19,137.28,137.18,107.66316292]
[1765184547232,3.19,137.28,137.17,102.051]
[1765184547233,3.19,137.26,137.17,6.5604]
[1765184547741,3.19,137.23,137.14,102.0733]
[1765184547940,3.19,137.21,137.16,6.5608]
[1765184548135,52.36345068,137.2,137.18,102.0461]
[1765184548335,63.34,137.19,137.18,102.0461]
[1765184548533,3.19,137.24,137.19,108.5985]
[1765184548840,66.53,137.23,137.19,108.5985]
[1765184549138,0.0554902,137.22,137.2,0.05343364]
[1765184549345,39.9942,137.21,137.2,108.64383364]
[1765184549635,28.6035,137.21,137.2,6.61223364]
[1765184550043,63.34,137.21,137.2,6.61223364]
[1765184550732,0.0554902,137.22,137.21,3.35]
[1765184550925,63.36,137.26,137.25,101.9925]
[1765184551128,3.19,137.31,137.25,107.61226292]
[1765184551345,3.19,137.29,137.23,102.0096]
[1765184551532,3.19,137.29,137.24,7.08915571]
[1765184551730,3.19,137.29,137.25,7.08915571]
[1765184551932,3.19,137.29,137.22,107.63006292]
[1765184551933,3.19,137.27,137.26,7.13823742]
[1765184552740,63.36,137.27,137.26,7.13823742]
[1765184553348,0.05297855,137.28,137.26,10.48823742]
[1765184553539,63.36,137.27,137.26,3.39908171]
[1765184553729,63.36,137.27,137.26,7.1411001]
[1765184555142,0.05297855,137.28,137.26,17.0471001]
[1765184555444,0.05297855,137.28,137.27,7.09753891]
[1765184556143,63.41297855,137.28,137.27,7.09753891]
[1765184556329,0.05297855,137.28,137.27,7.09753891]
[1765184556533,63.41297855,137.28,137.27,7.09753891]
[1765184557144,0.05297855,137.28,137.27,7.09753891]
[1765184557328,63.41297855,137.28,137.27,7.09753891]
[1765184558139,66.60297855,137.28,137.27,7.09753891]
[1765184558650,2.11,137.27,137.2,5.61976292]
[1765184559247,2.11,137.27,137.2,12.17876292]
[1765184559442,2.11,137.27,137.2,5.61976292]
[1765184559748,0.0497126,137.25,137.22,3.39602858]
[1765184559936,101.9169,137.36,137.22,3.39602858]
[1765184559937,2.11,137.31,137.26,105.3351]
[1765184560136,63.34,137.3,137.26,110.95486292]
[1765184560336,65.45,137.3,137.28,6.5551]
[1765184560549,65.45,137.3,137.26,5.61976292]
[1765184560848,63.34,137.3,137.26,8.96976292]
[1765184561037,2.16233523,137.29,137.27,0.04756348]
[1765184561444,65.47,137.28,137.27,0.04756348]
[1765184562449,2.06,137.27,137.2,107.64886292]
[1765184562639,63.36,137.26,137.21,105.3748]
[1765184562846,65.42,137.26,137.21,105.3748]
[1765184563042,5.61976292,137.31,137.22,102.0153]
[1765184563245,65.42,137.3,137.23,102.0077]
[1765184563440,2.11355515,137.28,137.25,0.05620143]
[1765184563935,65.42,137.27,137.25,6.61270143]
[1765184564135,65.42,137.27,137.25,0.05620143]
[1765184564334,63.36,137.26,137.25,0.05620143]
[1765184565046,65.42,137.26,137.25,0.05620143]
[1765184565648,2.06,137.25,137.18,6.5599]
[1765184565848,71.3765,137.26,137.14,12.26016278]
[1765184565849,2.06,137.23,137.14,5.61976292]
[1765184566447,2.06,137.22,137.16,6.5609]
[1765184566747,0.04865102,137.2,137.17,0.05544973]
[1765184566936,63.34,137.19,137.17,0.05544973]
[1765184567538,2.06,137.18,137.17,0.05544973]
[1765184568050,2.06,137.18,137.12,9.9128]
[1765184568241,2.06,137.18,137.09,102.1136]
[1765184568242,2.06,137.18,137.09,111.86399986]
[1765184568438,2.06,137.18,137.09,3.11]
[1765184568838,6.5609,137.17,137.09,3.11]
[1765184569040,2.11100881,137.14,137.12,0.04721139]
[1765184569744,65.4,137.13,137.12,0.04721139]
[1765184570048,2.06,137.13,137.12,0.04721139]
[1765184570347,63.41100881,137.14,137.12,3.15721139]
[1765184571045,63.38,137.13,137.12,6.60991139]
[1765184571949,63.38,137.13,137.12,9.71991139]
[1765184572150,101.9832,137.27,137.14,6.562]
[1765184572151,2.06,137.21,137.14,6.562]
[1765184572341,65.44,137.2,137.14,6.562]
[1765184572754,2.06,137.2,137.15,9.6712]
[1765184573048,63.38,137.2,137.17,3.11]
[1765184573245,63.43225373,137.2,137.17,3.15862156]
[1765184573955,0.05225373,137.2,137.17,3.15862156]
[1765184574347,0.05225373,137.2,137.19,3.11]
[1765184574550,63.45225373,137.2,137.19,3.11]
[1765184574752,63.45225373,137.2,137.18,6.5599]
[1765184577342,2.06,137.19,137.17,0.04862156]
[1765184578757,2.06,137.19,137.11,6.64039986]
[1765184578955,2.06,137.19,137.12,6.5628]
[1765184579155,2.06,137.19,137.1,6.64039986]
[1765184579859,2.01,137.15,137.13,0.04652768]
[1765184580153,65.37,137.14,137.13,0.04652768]
[1765184580658,0.05013364,137.16,137.13,3.15652768]
[1765184580854,63.36,137.14,137.13,0.04652768]
[1765184581257,65.37,137.14,137.13,0.04652768]
[1765184581657,0.05013364,137.16,137.13,0.04652768]
[1765184581858,65.39,137.15,137.13,0.04652768]
[1765184582157,2.01,137.14,137.13,0.04652768]
[1765184582558,2.01,137.14,137.09,6.5641]
[1765184583060,63.4,137.14,137.12,3.11]
[1765184583456,63.45085408,137.14,137.12,3.16421181]
[1765184583761,63.45085408,137.14,137.12,9.72721181]
[1765184583965,2.01,137.13,137.12,0.05421181]
[1765184584164,0.05085408,137.14,137.12,0.05421181]
[1765184584368,63.45085408,137.14,137.13,3.11]
[1765184584858,63.45085408,137.14,137.12,6.61691181]
[1765184585258,63.42,137.13,137.12,9.87691181]
[1765184585453,63.42,137.13,137.12,16.51731167]
[1765184586160,63.42,137.13,137.12,9.87691181]
[1765184586760,0.05085408,137.14,137.13,3.26]
[1765184586963,63.47085408,137.14,137.13,3.26]
[1765184587850,63.47085408,137.14,137.12,15.60726486]
[1765184588050,63.47085408,137.14,137.13,6.63636405]
[1765184589271,63.45085408,137.14,137.13,9.89636405]
[1765184589758,63.45085408,137.14,137.13,6.63636405]
[1765184589958,63.4,137.15,137.13,3.26]
[1765184590159,101.9982,137.25,137.16,102.0621]
[1765184590160,2.02,137.25,137.16,102.0621]
[1765184590467,2.02,137.23,137.18,6.63867697]
[1765184590771,2.02,137.23,137.18,9.89867697]
[1765184591064,0.05081826,137.22,137.19,0.05202437]
[1765184591267,2.07081826,137.22,137.19,0.05202437]
[1765184591566,63.4,137.21,137.19,0.05202437]
[1765184591863,63.38,137.2,137.19,0.05202437]
[1765184592957,65.38,137.2,137.19,0.05202437]
[1765184594957,2.07081826,137.22,137.19,0.05202437]
[1765184595163,65.38,137.21,137.19,0.05202437]
[1765184596468,65.38,137.21,137.19,6.61142437]
[1765184597067,63.36,137.21,137.19,6.61142437]
[1765184597771,63.34,137.2,137.19,6.61142437]
[1765184598568,0.05081826,137.22,137.2,6.5588]
[1765184598758,63.32,137.21,137.2,13.19756819]
[1765184599765,0.05081826,137.22,137.2,13.19756819]
[1765184599963,63.37081826,137.22,137.21,12.13035305]
[1765184600168,0.05081826,137.22,137.21,12.13035305]
[1765184600369,63.32,137.24,137.23,6.5577]
[1765184600571,63.32,137.24,137.23,13.19588038]
[1765184600769,2.01,137.28,137.23,13.19588038]
[1765184600976,63.32,137.24,137.23,13.19588038]
[1765184601870,0.0534421,137.25,137.23,13.19588038]
[1765184602076,63.32,137.24,137.23,13.19588038]
[1765184602462,63.32,137.24,137.23,6.5577]
[1765184602869,0.0534421,137.25,137.24,3.14]
[1765184603076,2.01,137.31,137.25,6.5567]
[1765184603270,2.01,137.29,137.25,6.5567]
[1765184604162,0.05109805,137.28,137.26,0.04960113]
[1765184604364,2.06109805,137.28,137.26,0.04960113]
[1765184606476,63.26,137.27,137.26,0.04960113]
[1765184607471,0.05109805,137.28,137.26,6.60580113]
[1765184607976,63.26,137.27,137.26,6.60580113]
[1765184608370,63.26,137.27,137.26,0.04960113]
[1765184609579,0.05109805,137.28,137.26,6.60550113]
[1765184609778,63.26,137.27,137.26,6.60550113]
[1765184611371,65.27,137.27,137.26,0.04960113]
[1765184612682,63.26,137.27,137.26,0.04960113]
[1765184613981,0.05109805,137.28,137.27,6.5558]
[1765184614174,65.28109805,137.28,137.26,0.04960113]
[1765184614372,2.01,137.27,137.26,0.04960113]
[1765184616494,65.23,137.27,137.26,0.04960113]
[1765184616671,63.22,137.27,137.26,6.60550113]
[1765184617586,63.2,137.27,137.26,6.60550113]
[1765184621079,0.05109805,137.28,137.26,9.74550113]
[1765184621279,63.18,137.27,137.26,9.74550113]
[1765184622080,0.05109805,137.28,137.27,3.14]
[1765184622286,29.0,137.34,137.27,3.14]
[1765184622287,31.01,137.34,137.3,9.6942]
[1765184622589,2.06,137.32,137.3,6.5542]
[1765184622789,2.06,137.33,137.31,6.5536]
[1765184623087,63.18,137.32,137.29,3.14]
[1765184623294,63.23214143,137.32,137.29,3.18770468]
[1765184623493,63.23214143,137.32,137.29,9.74220468]
[1765184624178,57.4247535,137.32,137.31,3.14]
[1765184624377,3.06,137.38,137.31,3.14]
[1765184624578,87.44,137.39,137.31,3.14]
[1765184624579,87.44,137.39,137.35,105.0606]
[1765184624780,3.06,137.46,137.38,3.14]
[1765184624991,63.2,137.45,137.39,3.14]
[1765184625492,0.05550947,137.43,137.41,0.05363663]
[1765184625693,3.11550947,137.43,137.41,0.05363663]
[1765184627793,63.16,137.42,137.41,3.19363663]
[1765184627987,3.52015491,137.49,137.45,3.24]
[1765184628188,3.52015491,137.49,137.46,3.24]
[1765184628490,3.52015491,137.49,137.43,105.0964]
[1765184628886,3.52015491,137.49,137.46,3.24]
[1765184629082,3.52015491,137.49,137.47,3.24]
[1765184629283,3.33,137.55,137.49,103.0948]
[1765184629493,3.33,137.55,137.5,1.28]
[1765184629881,0.04883754,137.54,137.51,0.04739852]
[1765184630301,0.04883754,137.54,137.51,1.32739852]
[1765184630894,0.04883754,137.54,137.51,0.04739852]
[1765184631301,3.37883754,137.54,137.51,0.04739852]
[1765184632698,3.33,137.53,137.45,6.86572559]
[1765184632894,3.33,137.53,137.45,108.71232559]
[1765184633688,3.38571094,137.5,137.48,0.04748027]
[1765184633997,63.16,137.49,137.48,0.04748027]
[1765184634392,0.05076696,137.5,137.48,0.04748027]
[1765184634590,63.16,137.49,137.48,0.04748027]
[1765184635297,63.21076696,137.5,137.48,0.04748027]
[1765184636798,66.54076696,137.5,137.48,0.04748027]
[1765184637390,0.05076696,137.5,137.48,0.04748027]
[1765184638601,3.38076696,137.5,137.48,0.04748027]
[1765184639396,0.05076696,137.5,137.48,0.04748027]
[1765184639600,0.05076696,137.5,137.48,6.59328027]
[1765184640398,101.7539,137.58,137.5,101.8053]
[1765184640399,3.33,137.58,137.5,101.8053]
[1765184640592,63.16,137.59,137.53,101.7863]
[1765184640794,63.16,137.61,137.56,101.7649]
[1765184641004,3.33,137.65,137.57,108.61842559]
[1765184641196,3.33,137.65,137.58,101.7495]
[1765184641402,0.05145545,137.63,137.6,1.33452429]
[1765184641597,3.38145545,137.63,137.6,0.05452429]
[1765184642304,8.67572559,137.62,137.52,101.7947]
[1765184642501,3.09,137.61,137.55,6.5422]
[1765184643102,3.09,137.61,137.54,101.7776]
[1765184643603,3.09,137.58,137.56,9.118e-05]
[1765184643803,3.09,137.58,137.5,101.8058]
[1765184644405,3.09,137.55,137.47,101.8297]
[1765184644713,3.09,137.55,137.43,103.2291]
[1765184644714,3.09,137.52,137.5,0.04942836]
[1765184645008,3.09,137.5,137.45,6.5471]
[1765184645196,8.67572559,137.53,137.46,103.2085]
[1765184645397,3.09,137.52,137.47,101.8319]
[1765184645603,3.09,137.5,137.48,6.5456]
[1765184645818,3.14567111,137.5,137.48,6.59468997]
[1765184646201,3.14567111,137.5,137.48,0.04908997]
[1765184647901,0.05567111,137.5,137.48,0.04908997]
[1765184648197,63.18,137.51,137.49,1.37]
[1765184648408,66.27,137.51,137.48,0.04908997]
[1765184649006,63.18,137.51,137.49,6.5451]
[1765184649201,66.32081094,137.51,137.48,0.04908997]
[1765184649408,3.09,137.5,137.48,0.04908997]
[1765184649809,63.23081094,137.51,137.48,0.04908997]
[1765184650107,63.25081094,137.51,137.48,1.41908997]
[1765184650513,0.05081094,137.51,137.5,1.37]
[1765184651119,0.05081094,137.51,137.48,1.41908997]
[1765184651315,0.05081094,137.51,137.48,104.70008997]
[1765184651613,63.22,137.55,137.5,1.37]
[1765184651919,3.09,137.54,137.47,1.37]
[1765184652511,3.14379501,137.52,137.49,0.04867219]
[1765184655219,9.68789501,137.52,137.49,0.04867219]
[1765184655418,3.09,137.51,137.49,0.04867219]
[1765184655618,3.09,137.51,137.41,208.83392094]
[1765184655813,3.09,137.51,137.41,146.83392094]
[1765184656114,3.09,137.51,137.41,141.24819535]
[1765184656325,3.09,137.49,137.42,6.5485]
[1765184656613,3.14537188,137.47,137.44,0.05122739]
[1765184657517,0.05537188,137.47,137.44,0.05122739]
[1765184658019,0.05537188,137.47,137.44,1.48122739]